bitfinex/quotes_BTCUSD_20251207
["timestamp","ask_amount","ask_price","bid_price","bid_amount"]
[1765147376170,0.00211809,90022.0,90021.0,0.63443107]
[1765147377637,0.00211809,90022.0,90021.0,0.67391831]
[1765147378600,0.00211809,90022.0,90021.0,0.69374728]
[1765147378964,0.00211809,90022.0,90021.0,0.63443107]
[1765147379910,0.00211809,90022.0,90021.0,0.718595]
[1765147380209,0.0367,90064.0,90021.0,0.718595]
[1765147380210,0.01772,90071.0,90060.0,0.06252299]
[1765147380416,0.11379,90076.0,90044.0,0.323]
[1765147380417,0.0367,90082.0,90081.0,0.01110112]
[1765147380578,0.03681822,90082.0,90081.0,0.29564651]
[1765147381464,0.15762822,90082.0,90081.0,0.07362411]
[1765147381669,0.01110309,90065.0,90058.0,0.01110395]
[1765147381866,0.08347,90059.0,90058.0,0.23318252]
[1765147382119,0.10567,90059.0,90058.0,0.01110395]
[1765147382324,0.10567,90059.0,90058.0,0.07362694]
[1765147382325,0.17971,90059.0,90058.0,0.07362694]
[1765147383726,0.01110407,90057.0,90045.0,0.1433]
[1765147383903,0.01110592,90042.0,90037.0,0.01110654]
[1765147384087,0.0222,90043.0,90039.0,0.22212596]
[1765147384289,0.07404,90042.0,90041.0,0.28464402]
[1765147384484,0.07404,90042.0,90041.0,0.22212103]
[1765147384743,0.07404,90042.0,90040.0,0.2221211]
[1765147384744,0.12081,90042.0,90040.0,0.2221211]
[1765147384944,0.11558,90041.0,90040.0,0.2221211]
[1765147385139,0.01110617,90040.0,90036.0,0.01110666]
[1765147385346,0.12076,90040.0,90037.0,0.07362953]
[1765147385565,0.0222,90043.0,90042.0,0.06252299]
[1765147385758,0.0232,90043.0,90039.0,0.23323225]
[1765147385900,0.04154,90040.0,90039.0,0.23323225]
[1765147386105,0.04154,90040.0,90039.0,0.29575524]
[1765147386322,0.11558,90040.0,90039.0,0.29575524]
[1765147388217,0.04454,90040.0,90039.0,0.29575524]
[1765147388844,0.04154,90040.0,90039.0,0.29575524]
[1765147389300,0.04454,90040.0,90039.0,0.29575524]
[1765147389768,0.04454,90040.0,90039.0,0.43905524]
[1765147390986,0.11858,90040.0,90039.0,0.43905524]
[1765147391136,0.04454,90040.0,90039.0,0.43905524]
[1765147391532,0.11858,90040.0,90039.0,0.43905524]
[1765147392976,0.003,90040.0,90039.0,0.43905524]
[1765147393366,0.04973,90040.0,90039.0,0.43905524]
[1765147393804,0.12135,90040.0,90039.0,0.43905524]
[1765147394681,0.12135,90040.0,90039.0,0.20582299]
[1765147395662,0.12135,90040.0,90039.0,0.42794895]
[1765147398413,0.04973,90040.0,90039.0,0.42794895]
[1765147399026,0.04973,90040.0,90039.0,0.54875182]
[1765147399027,0.003,90040.0,90039.0,0.54875182]
[1765147399814,0.04780383,90059.0,90057.0,0.06252299]
[1765147400014,0.03681817,90059.0,90057.0,0.06252299]
[1765147401031,0.03881817,90059.0,90057.0,0.06252299]
[1765147401762,0.00211817,90059.0,90057.0,0.06252299]
[1765147401954,0.00211817,90059.0,90058.0,0.28460209]
[1765147402125,0.00211817,90059.0,90058.0,0.06252299]
[1765147403270,0.00011817,90059.0,90058.0,0.06252299]
[1765147403633,0.00211817,90059.0,90058.0,0.06252299]
[1765147404022,0.04884817,90059.0,90058.0,0.06252299]
[1765147404267,0.12046817,90059.0,90058.0,0.06252299]
[1765147404704,0.04884817,90059.0,90058.0,0.06252299]
[1765147405046,0.14266817,90059.0,90058.0,0.06252299]
[1765147409138,0.00211817,90059.0,90058.0,0.06252299]
[1765147409559,0.2241948,90059.0,90058.0,0.06252299]
[1765147409763,0.00211817,90059.0,90058.0,0.14049299]
[1765147409924,0.00211817,90059.0,90058.0,0.28540586]
[1765147410733,0.00011817,90059.0,90058.0,0.28540586]
[1765147412073,0.00111817,90059.0,90058.0,0.28540586]
[1765147412284,0.00111817,90059.0,90058.0,0.35790586]
[1765147412650,0.00111817,90059.0,90058.0,0.20743586]
[1765147412651,0.11946817,90059.0,90058.0,0.20743586]
[1765147413058,0.00111817,90059.0,90058.0,0.23871586]
[1765147413379,0.00111817,90059.0,90058.0,0.28540586]
[1765147413700,0.00111817,90059.0,90058.0,0.35790586]
[1765147414942,0.00011817,90059.0,90058.0,0.38782794]
[1765147415345,0.00011817,90059.0,90058.0,0.35790586]
[1765147415917,0.00011817,90059.0,90058.0,0.39760942]
[1765147416138,0.00011817,90059.0,90058.0,0.35790586]
[1765147416534,0.00011817,90059.0,90058.0,0.36490586]
[1765147417319,0.00011817,90059.0,90058.0,0.56163709]
[1765147417524,0.00011817,90059.0,90058.0,0.72714107]
[1765147418247,0.00011817,90059.0,90058.0,0.72014107]
[1765147418578,0.00111817,90059.0,90058.0,0.72914107]
[1765147421131,0.00111817,90059.0,90058.0,0.70693709]
[1765147421546,0.00111817,90059.0,90058.0,0.72914107]
[1765147421942,0.00111817,90059.0,90058.0,0.70693709]
[1765147422470,0.01381346,90084.0,90073.0,0.0111021]
[1765147422471,0.01110161,90077.0,90073.0,0.0111021]
[1765147422650,0.0222,90075.0,90072.0,0.01110222]
[1765147423045,0.04662,90073.0,90072.0,0.07362521]
[1765147423478,0.11506,90073.0,90072.0,0.07362521]
[1765147423672,0.11506,90073.0,90072.0,0.06252299]
[1765147423873,0.11506,90073.0,90060.0,0.17203365]
[1765147423874,0.01110321,90064.0,90060.0,0.17203365]
[1765147424078,0.01110321,90064.0,90061.0,0.14218183]
[1765147424279,0.03416,90063.0,90062.0,0.06252299]
[1765147424570,0.03416,90063.0,90060.0,0.25851771]
[1765147424798,0.03416,90063.0,90061.0,0.2845924]
[1765147424996,0.03416,90063.0,90061.0,0.22206941]
[1765147425207,0.03416,90063.0,90062.0,0.06252299]
[1765147425412,0.003,90064.0,90061.0,0.22206941]
[1765147425413,0.003,90064.0,90063.0,0.28458976]
[1765147425826,0.03416,90067.0,90064.0,0.29568814]
[1765147426028,0.03416,90067.0,90066.0,0.06252299]
[1765147426454,0.14922,90067.0,90066.0,0.06252299]
[1765147427807,0.03416,90067.0,90066.0,0.06252299]
[1765147428271,0.02882124,90080.0,90072.0,0.06252299]
[1765147428496,0.04526148,90078.0,90076.0,0.06252299]
[1765147428680,0.03416,90078.0,90076.0,0.06252299]
[1765147428882,0.04662,90077.0,90076.0,0.06252299]
[1765147429345,0.11506,90077.0,90076.0,0.06252299]
[1765147430085,0.12616161,90077.0,90074.0,0.01110198]
[1765147430302,0.00271271,90084.0,90083.0,0.28454046]
[1765147430506,0.00271271,90084.0,90083.0,0.06252299]
[1765147430690,0.00271271,90084.0,90083.0,0.28615333]
[1765147430889,0.04933271,90084.0,90083.0,0.28615333]
[1765147431667,0.04933271,90084.0,90083.0,0.06413586]
[1765147432013,0.05133271,90084.0,90083.0,0.06413586]
[1765147432908,0.11977271,90084.0,90083.0,0.06413586]
[1765147433993,0.05133271,90084.0,90083.0,0.06413586]
[1765147434357,0.11977271,90084.0,90083.0,0.06413586]
[1765147434592,0.11977271,90084.0,90083.0,0.06252299]
[1765147435426,0.05133271,90084.0,90083.0,0.06252299]
[1765147435608,0.11977271,90084.0,90083.0,0.06252299]
[1765147436178,0.14197271,90084.0,90083.0,0.06252299]
[1765147436377,0.11977271,90084.0,90083.0,0.06252299]
[1765147436541,0.05133271,90084.0,90083.0,0.06252299]
[1765147437357,0.00471271,90084.0,90083.0,0.06252299]
[1765147440345,0.00471271,90084.0,90083.0,0.20470482]
[1765147440515,0.00471271,90084.0,90083.0,0.42833516]
[1765147440716,0.00471271,90084.0,90083.0,0.47405516]
[1765147441531,0.00471271,90084.0,90083.0,0.54083516]
[1765147441726,0.00471271,90084.0,90083.0,0.47405516]
[1765147442034,0.00471271,90084.0,90083.0,0.54083516]
[1765147442246,0.00271271,90084.0,90083.0,0.86383516]
[1765147442471,0.00271271,90084.0,90083.0,0.90363759]
[1765147442672,0.00271271,90084.0,90083.0,0.83885759]
[1765147443409,0.00271271,90084.0,90083.0,0.79905516]
[1765147444254,0.00271271,90084.0,90083.0,0.86583516]
[1765147445336,0.04896271,90084.0,90083.0,0.1457947]
[1765147445623,0.11622271,90084.0,90083.0,0.20831769]
[1765147445825,0.11622271,90084.0,90083.0,0.1457947]
[1765147446027,0.11622271,90084.0,90083.0,0.20831769]
[1765147446234,0.00271271,90084.0,90083.0,0.20831769]
[1765147446634,0.00271271,90084.0,90083.0,0.26357929]
[1765147446855,0.00271271,90084.0,90083.0,0.32081769]
[1765147447403,0.00271271,90084.0,90083.0,0.25403769]
[1765147448057,0.00271271,90084.0,90083.0,0.32081769]
[1765147449774,0.00271271,90084.0,90083.0,0.36067866]
[1765147450186,0.00271271,90084.0,90083.0,0.32081769]
[1765147452159,0.03416,90113.0,90108.0,0.07362078]
[1765147452356,0.22194602,90112.0,90110.0,0.06252299]
[1765147452576,0.04565117,90113.0,90111.0,0.13946912]
[1765147452777,0.034554,90113.0,90111.0,0.13946912]
[1765147453111,0.25649769,90113.0,90111.0,0.13946912]
[1765147453287,0.04387,90112.0,90111.0,0.13946912]
[1765147453488,0.11064,90112.0,90111.0,0.13946912]
[1765147453692,0.04387,90112.0,90111.0,0.13946912]
[1765147454207,0.005394,90113.0,90111.0,0.13946912]
[1765147454361,0.000394,90113.0,90111.0,0.13946912]
[1765147454591,0.000394,90113.0,90112.0,0.06252299]
[1765147454811,0.005394,90113.0,90112.0,0.06252299]
[1765147455219,0.000394,90113.0,90112.0,0.06252299]
[1765147455549,0.003394,90113.0,90112.0,0.06252299]
[1765147455763,0.047264,90113.0,90112.0,0.06252299]
[1765147455976,0.044264,90113.0,90112.0,0.06252299]
[1765147456328,0.047264,90113.0,90112.0,0.06252299]
[1765147457371,0.114034,90113.0,90112.0,0.06252299]
[1765147457773,0.003394,90113.0,90112.0,0.06252299]
[1765147458214,0.047264,90113.0,90112.0,0.20199211]
[1765147458368,0.11490179,90113.0,90112.0,0.20199211]
[1765147459411,0.00426179,90113.0,90112.0,0.13452586]
[1765147460059,0.00426179,90113.0,90112.0,0.06252299]
[1765147460479,0.00126179,90113.0,90112.0,0.06252299]
[1765147460914,0.00226179,90113.0,90112.0,0.06252299]
[1765147461315,0.00126179,90113.0,90112.0,0.06252299]
[1765147461729,0.00326179,90113.0,90112.0,0.06252299]
[1765147462561,0.00326179,90113.0,90112.0,0.10910586]
[1765147462969,0.00326179,90113.0,90112.0,0.17744586]
[1765147463806,0.00326179,90113.0,90112.0,0.19964984]
[1765147464017,0.00326179,90113.0,90112.0,0.53219195]
[1765147464224,0.00326179,90113.0,90112.0,0.52264984]
[1765147464632,0.00126179,90113.0,90112.0,0.52264984]
[1765147464885,0.00126179,90113.0,90112.0,0.52364984]
[1765147465530,0.00126179,90113.0,90112.0,0.52264984]
[1765147465756,0.00126179,90113.0,90112.0,0.52964984]
[1765147468510,0.00126179,90113.0,90112.0,0.54668107]
[1765147471772,0.00126179,90113.0,90112.0,0.52447709]
[1765147472450,0.00126179,90113.0,90112.0,0.54668107]
[1765147472798,0.11190179,90113.0,90112.0,0.007]
[1765147473145,0.15654961,90113.0,90112.0,0.007]
[1765147473325,0.15654961,90113.0,90110.0,0.01109754]
[1765147473326,0.16764678,90113.0,90110.0,0.01109754]
[1765147473543,0.08125742,90111.0,90102.0,0.22196928]
[1765147473752,0.08125742,90111.0,90090.0,0.03972841]
[1765147473753,0.01109951,90094.0,90090.0,0.03972841]
[1765147473945,0.01109951,90094.0,90085.0,0.01110062]
[1765147473946,0.04387,90091.0,90085.0,0.01110062]
[1765147474174,0.0549705,90086.0,90081.0,0.01110112]
[1765147474356,0.0549705,90086.0,90080.0,0.23312446]
[1765147474357,0.07322,90082.0,90080.0,0.23312446]
[1765147474556,0.07322,90082.0,90081.0,0.06252299]
[1765147474557,0.02935,90082.0,90081.0,0.06252299]
[1765147474774,0.02935,90082.0,90079.0,0.01110136]
[1765147474775,0.04387,90081.0,90079.0,0.01110136]
[1765147474983,0.04387,90080.0,90079.0,0.01110136]
[1765147475588,0.11064,90080.0,90079.0,0.01110136]
[1765147475788,0.11064,90080.0,90077.0,0.01110161]
[1765147476030,0.04387,90078.0,90077.0,0.01110161]
[1765147476273,0.04387,90078.0,90077.0,0.0736246]
[1765147476471,0.11064,90078.0,90077.0,0.06252299]
[1765147476768,0.11064,90078.0,90072.0,0.01110222]
[1765147476769,0.0222,90077.0,90072.0,0.01110222]
[1765147476945,0.07316,90073.0,90072.0,0.01110222]
[1765147477152,0.07316,90073.0,90070.0,0.01110247]
[1765147477383,0.06677,90072.0,90071.0,0.06252299]
[1765147477579,0.01110235,90071.0,90069.0,0.06252299]
[1765147477721,0.04387,90070.0,90069.0,0.06252299]
[1765147477926,0.04387,90070.0,90068.0,0.06252299]
[1765147478251,0.06677,90071.0,90065.0,0.01110309]
[1765147478252,0.0222,90068.0,90065.0,0.01110309]
[1765147478622,0.0222,90068.0,90066.0,0.06252299]
[1765147478789,0.04387,90066.0,90065.0,0.01110309]
[1765147479277,0.04387,90066.0,90065.0,0.07362608]
[1765147480654,0.04487,90066.0,90065.0,0.07362608]
[1765147481913,0.04487,90066.0,90065.0,0.06252299]
[1765147483078,0.11006,90066.0,90065.0,0.06252299]
[1765147486271,0.001,90066.0,90065.0,0.06252299]
[1765147486484,0.0454,90066.0,90065.0,0.06252299]
[1765147487641,0.11059,90066.0,90065.0,0.06252299]
[1765147488395,0.11059,90066.0,90065.0,0.18234546]
[1765147488396,0.001,90066.0,90065.0,0.18234546]
[1765147488598,0.001,90066.0,90065.0,0.11484546]
[1765147492724,0.001,90066.0,90065.0,0.18234546]
[1765147493922,0.001,90066.0,90065.0,0.54754944]
[1765147494124,0.001,90066.0,90065.0,0.53799984]
[1765147494334,0.001,90066.0,90065.0,0.54910108]
[1765147494534,0.01109927,90096.0,90090.0,0.06252299]
[1765147494735,0.01768,90106.0,90091.0,0.12859299]
[1765147494736,0.0006332,90092.0,90091.0,0.12859299]
[1765147495013,0.0006332,90092.0,90091.0,0.19770586]
[1765147495397,0.0006332,90092.0,90091.0,0.55994107]
[1765147495563,0.0036332,90092.0,90091.0,0.55994107]
[1765147495805,0.0036332,90092.0,90091.0,0.59327138]
[1765147496251,0.0006332,90092.0,90091.0,0.59327138]
[1765147496419,0.0006332,90092.0,90091.0,0.60027138]
[1765147497394,0.03283,90131.0,90128.0,0.01109533]
[1765147497610,0.03283,90131.0,90129.0,0.28442714]
[1765147497611,0.00011815,90131.0,90129.0,0.28442714]
[1765147497837,0.00011815,90131.0,90130.0,0.12881299]
[1765147498055,0.00011815,90131.0,90130.0,0.13042586]
[1765147498270,0.00128489,90131.0,90130.0,0.19151586]
[1765147498919,0.00328489,90131.0,90130.0,0.19151586]
[1765147499368,0.00128489,90131.0,90130.0,0.19151586]
[1765147499581,0.00328489,90131.0,90130.0,0.19151586]
[1765147500931,0.00328489,90131.0,90130.0,0.08778586]
[1765147501150,0.00328489,90131.0,90130.0,0.06252299]
[1765147502006,0.00328489,90131.0,90130.0,0.10516299]
[1765147502212,0.00328489,90131.0,90130.0,0.06252299]
[1765147506098,0.00328489,90131.0,90130.0,0.10516299]
[1765147508418,0.00328489,90131.0,90130.0,0.07095427]
[1765147508590,0.00328489,90131.0,90130.0,0.11359427]
[1765147508764,0.00328489,90131.0,90130.0,0.10516299]
[1765147508965,0.00328489,90131.0,90130.0,0.11359427]
[1765147509965,0.00328489,90131.0,90130.0,0.10516299]
[1765147510615,0.00328489,90131.0,90130.0,0.17729839]
[1765147511621,0.0002,90140.0,90139.0,0.28440253]
[1765147512236,0.00046917,90140.0,90139.0,0.28440253]
[1765147512617,0.13982302,90140.0,90134.0,0.01109459]
[1765147512964,0.04101,90135.0,90134.0,0.07361758]
[1765147513406,0.10606,90135.0,90134.0,0.06252299]
[1765147513608,0.10606,90135.0,90134.0,0.28441483]
[1765147514257,0.12826,90135.0,90134.0,0.06252299]
[1765147514659,0.10806,90135.0,90134.0,0.06252299]
[1765147514811,0.13026,90135.0,90134.0,0.06252299]
[1765147515011,0.10806,90135.0,90134.0,0.06252299]
[1765147515737,0.10806,90135.0,90133.0,0.13618423]
[1765147515738,0.24409184,90134.0,90133.0,0.13618423]
[1765147515966,0.35015184,90134.0,90133.0,0.13618423]
[1765147516890,0.35115184,90134.0,90133.0,0.13618423]
[1765147517446,0.0110957,90125.0,90122.0,0.13618423]
[1765147517848,0.13591,90123.0,90122.0,0.06252299]
[1765147518249,0.22192632,90120.0,90115.0,0.01109693]
[1765147518464,0.03035,90116.0,90115.0,0.07373807]
[1765147518962,0.07136,90116.0,90115.0,0.07373807]
[1765147519192,0.13641,90116.0,90115.0,0.07373807]
[1765147519623,0.13641,90116.0,90115.0,0.00011815]
[1765147519820,0.15861,90116.0,90115.0,0.00011815]
[1765147520245,0.38154617,90116.0,90115.0,0.00011815]
[1765147521060,0.38054617,90116.0,90115.0,0.00011815]
[1765147522037,0.39822617,90116.0,90115.0,0.00011815]
[1765147522275,0.40022617,90116.0,90115.0,0.00011815]
[1765147522938,0.39822617,90116.0,90115.0,0.00011815]
[1765147523110,0.40122617,90116.0,90115.0,0.00011815]
[1765147524396,0.49315769,90116.0,90115.0,0.00011815]
[1765147525508,0.40122617,90116.0,90115.0,0.00011815]
[1765147526310,0.68776317,90116.0,90115.0,0.00011815]
[1765147526541,0.60436617,90116.0,90115.0,0.00011815]
[1765147526867,0.92736617,90116.0,90115.0,0.00011815]
[1765147527067,0.01110001,90090.0,90087.0,0.06252299]
[1765147527275,0.01110001,90090.0,90082.0,0.01110099]
[1765147527276,0.07026025,90088.0,90084.0,0.01110075]
[1765147527480,0.0521105,90086.0,90080.0,0.01110124]
[1765147527791,0.23311006,90087.0,90081.0,0.01110112]
[1765147528008,0.06505,90086.0,90081.0,0.01110112]
[1765147528209,0.06505,90086.0,90082.0,0.06252299]
[1765147528599,0.04101,90083.0,90082.0,0.06252299]
[1765147528944,0.10606,90083.0,90082.0,0.06252299]
[1765147530007,0.04101,90083.0,90082.0,0.06252299]
[1765147530226,0.10706,90083.0,90082.0,0.06252299]
[1765147530453,0.32907947,90083.0,90081.0,0.1473]
[1765147530739,0.32907947,90083.0,90078.0,0.06252299]
[1765147530740,0.2220224,90081.0,90078.0,0.06252299]
[1765147531088,0.2220224,90081.0,90074.0,0.23314047]
[1765147531089,0.03035,90079.0,90077.0,0.06252299]
[1765147531502,0.01109939,90095.0,90088.0,0.06252299]
[1765147531737,0.01109964,90093.0,90089.0,0.08667299]
[1765147532808,0.01109816,90105.0,90089.0,0.41170854]
[1765147533016,0.4117287,90130.0,90089.0,0.41470854]
[1765147533017,0.01109717,90113.0,90089.0,0.41470854]
[1765147533222,0.01109643,90119.0,90089.0,0.75991252]
[1765147533374,0.01109631,90120.0,90089.0,0.75991252]
[1765147533587,0.01109643,90119.0,90089.0,0.75991252]
[1765147534160,0.03035,90121.0,90089.0,0.73470854]
[1765147534382,0.03035,90130.0,90126.0,0.28443453]
[1765147534606,0.01779806,90127.0,90126.0,0.28443453]
[1765147536148,0.01879806,90127.0,90126.0,0.2880474]
[1765147538555,0.00111806,90127.0,90126.0,0.3287574]
[1765147539588,0.00111806,90127.0,90126.0,0.4760574]
[1765147540404,0.00111806,90127.0,90126.0,0.5367674]
[1765147541027,0.00111806,90127.0,90126.0,0.3894674]
[1765147542811,0.00111806,90127.0,90126.0,0.7124674]
[1765147543784,0.00111806,90127.0,90126.0,0.73467138]
[1765147544194,0.04044806,90127.0,90126.0,0.002]
[1765147544410,0.10028806,90127.0,90126.0,0.002]
[1765147544610,0.12248806,90127.0,90126.0,0.002]
[1765147544991,0.06264806,90127.0,90126.0,0.002]
[1765147545224,0.12248806,90127.0,90126.0,0.002]
[1765147545548,0.06264806,90127.0,90126.0,0.002]
[1765147545953,0.04044806,90127.0,90126.0,0.002]
[1765147548112,0.10028806,90127.0,90126.0,0.002]
[1765147548521,0.12248806,90127.0,90126.0,0.002]
[1765147553230,0.12248806,90127.0,90126.0,0.1493]
[1765147558125,0.09333806,90127.0,90126.0,0.1493]
[1765147561353,0.09333806,90127.0,90126.0,0.002]
[1765147564983,0.12214806,90127.0,90126.0,0.002]
[1765147566766,0.14434806,90127.0,90126.0,0.002]
[1765147567167,0.12214806,90127.0,90126.0,0.002]
[1765147569714,0.14434806,90127.0,90126.0,0.002]
[1765147569900,0.2219608,90106.0,90104.0,0.03970107]
[1765147570076,0.2219608,90106.0,90094.0,0.01109951]
[1765147570077,0.0222,90101.0,90097.0,0.01109914]
[1765147570396,0.02881,90099.0,90097.0,0.23307974]
[1765147570629,0.03706,90098.0,90097.0,0.23307974]
[1765147570875,0.09222,90098.0,90097.0,0.01109914]
[1765147571007,0.09222,90098.0,90096.0,0.01109927]
[1765147571201,0.03706,90097.0,90095.0,0.01109939]
[1765147571397,0.09222,90097.0,90096.0,0.06252299]
[1765147571684,0.05516,90097.0,90096.0,0.06252299]
[1765147571884,0.09396,90097.0,90096.0,0.06252299]
[1765147572087,0.09396,90097.0,90095.0,0.06252299]
[1765147572362,0.09594,90096.0,90094.0,0.06252299]
[1765147572578,0.0388,90095.0,90094.0,0.28451335]
[1765147572709,0.09594,90095.0,90094.0,0.06252299]
[1765147573603,0.09594,90095.0,90094.0,0.08652299]
[1765147573750,0.09594,90095.0,90094.0,0.06252299]
[1765147574152,0.10703939,90095.0,90093.0,0.06252299]
[1765147574355,0.23308248,90097.0,90093.0,0.06252299]
[1765147574356,0.09594,90094.0,90093.0,0.06252299]
[1765147574578,0.09594,90094.0,90092.0,0.06252299]
[1765147574781,0.05714,90093.0,90092.0,0.06252299]
[1765147574987,0.09594,90093.0,90092.0,0.06252299]
[1765147576195,0.10703964,90093.0,90090.0,0.073623]
[1765147576398,0.01110001,90090.0,90085.0,0.06252299]
[1765147576603,0.01110001,90090.0,90083.0,0.05080194]
[1765147576604,0.01110001,90090.0,90087.0,0.06252299]
[1765147576786,0.05714,90089.0,90087.0,0.06252299]
[1765147576984,0.06754,90088.0,90087.0,0.06252299]
[1765147577549,0.12468,90088.0,90087.0,0.06252299]
[1765147578553,0.12568,90088.0,90087.0,0.06252299]
[1765147579055,0.12768,90088.0,90087.0,0.06252299]
[1765147579428,0.12768,90088.0,90087.0,0.20982299]
[1765147579634,0.09894,90088.0,90087.0,0.20982299]
[1765147580362,0.09794,90088.0,90087.0,0.20982299]
[1765147580663,0.002,90088.0,90087.0,0.20982299]
[1765147580915,0.003,90088.0,90087.0,0.4318306]
[1765147581110,0.003,90088.0,90087.0,0.46968347]
[1765147581311,0.001,90088.0,90087.0,0.46968347]
[1765147581615,0.01109902,90098.0,90096.0,0.06252299]
[1765147582036,0.0388,90097.0,90096.0,0.06252299]
[1765147582400,0.09594,90097.0,90096.0,0.06252299]
[1765147582890,0.09594,90097.0,90096.0,0.20982299]
[1765147583583,0.09694,90097.0,90096.0,0.20982299]
[1765147584405,0.12014,90097.0,90096.0,0.20982299]
[1765147587029,0.09794,90097.0,90096.0,0.20982299]
[1765147588838,0.09794,90097.0,90096.0,0.43180842]
[1765147589023,0.09794,90097.0,90096.0,0.20982299]
[1765147590810,0.09794,90097.0,90096.0,0.43180842]
[1765147592375,0.09794,90097.0,90096.0,0.20982299]
[1765147593389,0.002,90097.0,90096.0,0.43180842]
[1765147594006,0.0408,90097.0,90096.0,0.43180842]
[1765147594206,0.09794,90097.0,90096.0,0.43180842]
[1765147598131,0.09794,90097.0,90096.0,0.20982299]
[1765147598936,0.09794,90097.0,90096.0,0.43180842]
[1765147600131,0.09794,90097.0,90096.0,0.20982299]
[1765147603032,0.31992297,90097.0,90096.0,0.20982299]
[1765147603792,0.09794,90097.0,90096.0,0.20982299]
[1765147607334,0.002,90097.0,90096.0,0.20982299]
[1765147608591,0.09547,90097.0,90096.0,0.20982299]
[1765147612126,0.03987,90097.0,90096.0,0.20982299]
[1765147613080,0.09547,90097.0,90096.0,0.20982299]
[1765147614594,0.09547,90097.0,90096.0,0.43180842]
[1765147614804,0.09547,90097.0,90096.0,0.20982299]
[1765147616673,0.33965297,90097.0,90096.0,0.1473]
[1765147622149,0.11767,90097.0,90096.0,0.1473]
[1765147622332,0.09547,90097.0,90096.0,0.1473]
[1765147622766,0.11767,90097.0,90096.0,0.1473]
[1765147623403,0.13922068,90097.0,90096.0,0.1473]
[1765147625034,0.11767,90097.0,90096.0,0.1473]
[1765147625456,0.11667,90097.0,90096.0,0.1473]
[1765147625841,0.09647,90097.0,90095.0,0.06252299]
[1765147626036,0.003,90097.0,90096.0,0.41774236]
[1765147626215,0.004,90097.0,90096.0,0.37804129]
[1765147626560,0.006,90097.0,90096.0,0.37804129]
[1765147626758,0.002,90097.0,90096.0,0.32192129]
[1765147627219,0.002,90097.0,90096.0,0.38004129]
[1765147627808,0.02677,90112.0,90110.0,0.06252299]
[1765147628010,0.02677,90112.0,90111.0,0.28447147]
[1765147628378,0.02677,90120.0,90117.0,0.06252299]
[1765147628601,0.0527,90126.0,90118.0,0.09832299]
[1765147628602,0.01779804,90119.0,90118.0,0.09832299]
[1765147629279,0.00011804,90119.0,90118.0,0.15605586]
[1765147629484,0.00011804,90119.0,90118.0,0.47905586]
[1765147629982,0.00011804,90119.0,90118.0,0.48005586]
[1765147630209,0.00011804,90119.0,90118.0,0.51886423]
[1765147630484,0.00011804,90119.0,90118.0,0.52786423]
[1765147630918,0.00011804,90119.0,90118.0,0.48805586]
[1765147631846,0.00011804,90119.0,90118.0,0.48105586]
[1765147632039,0.00011804,90119.0,90118.0,0.50205586]
[1765147632367,0.00011804,90119.0,90118.0,0.48105586]
[1765147632720,0.00011804,90119.0,90118.0,0.50105586]
[1765147634082,0.00011804,90119.0,90118.0,0.50905586]
[1765147637357,0.00011804,90119.0,90118.0,0.65635586]
[1765147637568,0.00011804,90119.0,90118.0,0.67855984]
[1765147638618,0.00011804,90119.0,90118.0,0.73803095]
[1765147638822,1e-08,90119.0,90118.0,0.67855984]
[1765147639458,1e-08,90119.0,90118.0,0.65655984]
[1765147639874,1e-08,90119.0,90118.0,0.68655984]
[1765147640098,1e-08,90119.0,90118.0,0.76955094]
[1765147640269,1e-08,90119.0,90118.0,1.13236494]
[1765147640449,1e-08,90119.0,90118.0,1.12436494]
[1765147640849,0.00023926,90139.0,90137.0,0.06252299]
[1765147641048,0.00023926,90139.0,90138.0,0.46162984]
[1765147641265,0.00023926,90139.0,90138.0,0.53339107]
[1765147641437,1e-08,90139.0,90138.0,0.57297498]
[1765147641633,0.0002,90140.0,90139.0,0.62960651]
[1765147641634,1e-08,90140.0,90139.0,0.62960651]
[1765147641833,0.0002,90160.0,90149.0,0.62958189]
[1765147642080,0.00031801,90150.0,90149.0,0.68556476]
[1765147642286,0.00031801,90150.0,90149.0,0.74029476]
[1765147644199,0.00031801,90150.0,90149.0,0.76929476]
[1765147644400,0.00031801,90150.0,90149.0,0.74829476]
[1765147644608,0.00031801,90150.0,90149.0,0.74029476]
[1765147644821,0.00031801,90150.0,90149.0,0.77629476]
[1765147645176,0.00031801,90150.0,90149.0,0.92359475]
[1765147645690,0.0002,90160.0,90159.0,0.60735331]
[1765147645895,0.00025235,90160.0,90159.0,0.72263016]
[1765147646967,0.00025235,90160.0,90159.0,0.73063016]
[1765147647548,0.00088023,90160.0,90159.0,0.75163016]
[1765147648402,0.22170468,90211.0,90204.0,0.23280526]
[1765147648603,0.02657351,90207.0,90204.0,0.23280526]
[1765147649021,0.02657351,90207.0,90204.0,0.01108598]
[1765147649233,0.00134463,90205.0,90202.0,0.07360921]
[1765147649415,0.03765912,90207.0,90203.0,0.0110861]
[1765147649658,0.02657351,90207.0,90204.0,0.01108598]
[1765147649871,0.00039351,90207.0,90204.0,0.01108598]
[1765147650083,0.00134463,90205.0,90204.0,0.01108598]
[1765147650314,0.00134463,90205.0,90204.0,0.07360897]
[1765147651464,0.00334463,90205.0,90204.0,0.07360897]
[1765147651797,0.00334463,90205.0,90204.0,0.11033897]
[1765147652874,0.00134463,90205.0,90204.0,0.11033897]
[1765147653010,0.00234463,90205.0,90204.0,0.11033897]
[1765147653777,0.00234463,90205.0,90204.0,0.16506897]
[1765147653975,0.00234463,90205.0,90204.0,0.31236896]
[1765147654283,0.00234463,90205.0,90204.0,0.31398183]
[1765147655279,0.00234463,90205.0,90204.0,0.32698183]
[1765147655505,0.00234463,90205.0,90204.0,0.17968184]
[1765147655718,0.00134463,90205.0,90204.0,0.17968184]
[1765147656207,0.00134463,90205.0,90204.0,0.54191705]
[1765147656404,0.00134463,90205.0,90204.0,0.54635543]
[1765147656616,0.00134463,90205.0,90204.0,0.55135543]
[1765147656963,0.00134463,90205.0,90204.0,0.53335543]
[1765147657164,0.0002,90210.0,90209.0,0.62943433]
[1765147657369,0.0002,90220.0,90219.0,0.62940976]
[1765147657666,1e-08,90220.0,90219.0,0.66775263]
[1765147657908,1e-08,90220.0,90219.0,0.86978262]
[1765147658977,1e-08,90220.0,90219.0,1.02982662]
[1765147659184,1e-08,90220.0,90219.0,0.86978262]
[1765147659776,1e-08,90220.0,90219.0,1.12475762]
[1765147659978,1e-08,90220.0,90219.0,1.15075762]
[1765147660218,1e-08,90220.0,90219.0,1.12475762]
[1765147660420,1e-08,90220.0,90219.0,0.96745763]
[1765147660617,1e-08,90220.0,90219.0,0.94829365]
[1765147660815,1e-08,90220.0,90219.0,0.67075566]